Cogmind - Beta 13 @@@ ROGUE MODE // 2024.04.14 @ 00:30:06 Player: chexo4 Result: Self-destructed Performance ------------- Evolutions (1) 500 Regions Visited (6) 1200 Robots Destroyed (18) 90 Value Destroyed (344) 344 Prototype IDs (26) 520 Alien Tech Used (0) 0 Bonus (300) 300 TOTAL SCORE: 2954 Bonus ------- Aligned with FarCom 300 Cogmind --------- Core Integrity 375/400 Matter 300/300 Energy 125/125 System Corruption 3% Temperature Cool (0) Movement Rolling (90) Location -8/Mines Parts ------- > --- POWER (1) -------- Light Ion Engine > --- PROPULSION (4) --- Wheel Wheel Compact Wheel Compact Wheel > --- UTILITY (2) ------ Large Storage Unit Seismic Detector > --- WEAPON (2) ------- (None) > --- INVENTORY (15) --- Light Ion Engine VTOL Module High-capacity Battery (250) High-capacity Matter Pod (200) Light Armor Plating EM Shotgun Particle Gun Assault Rifle XL Autogun Array Light Cannon Mining Laser Peak State ------------ > --- POWER ------------ Light Ion Engine > --- PROPULSION ------- Wheel Wheel Compact Wheel Compact Wheel > --- UTILITY ---------- Large Storage Unit Seismic Detector > --- WEAPON ----------- Advanced Beam Cannon Light Cannon > --- INVENTORY -------- Light Ion Engine Light Armor Plating Particle Gun Assault Rifle Mining Laser [Rating: 11] Favorites ----------- Power Light Ion Engine Engine Light Ion Engine Propulsion Compact Wheel Wheel Compact Wheel Utility Seismic Detector Device Seismic Detector Storage Large Storage Unit Weapon Assault Rifle Energy Gun Particle Gun Energy Cannon Advanced Beam Cannon Ballistic Gun Assault Rifle Ballistic Cannon Light Cannon Build | -11 -10 -10 -9 -9 -9 -8 ------- Run | Yrd Mat Min Mat Min Exi Min Slots Evolved 2 | . . . 2 . . . Power . | . . . . . . . Propulsion 2 | . . . 2 . . . Utility . | . . . . . . . Weapon . | . . . . . . . Parts Attached 20 | 8 5 . 7 . . . Power 2 | 1 1 . . . . . Engine 2 | 1 1 . . . . . Core . | . . . . . . . Reactor . | . . . . . . . Propulsion 6 | 3 . . 3 . . . Treads . | . . . . . . . Leg . | . . . . . . . Wheel 6 | 3 . . 3 . . . Hover . | . . . . . . . Flight . | . . . . . . . Utility 5 | 2 2 . 1 . . . Device 2 | 1 1 . . . . . Storage 3 | 1 1 . 1 . . . Processor . | . . . . . . . Hackware . | . . . . . . . Protection . | . . . . . . . Artifact . | . . . . . . . Weapon 7 | 2 2 . 3 . . . Energy Gun 2 | . . . 2 . . . Energy Cannon 1 | . . . 1 . . . Ballistic Gun 3 | 2 1 . . . . . Ballistic Cannon 1 | . 1 . . . . . Launcher . | . . . . . . . Special Weapon . | . . . . . . . Impact Weapon . | . . . . . . . Slashing Weapon . | . . . . . . . Piercing Weapon . | . . . . . . . Special Melee Weapon . | . . . . . . . Unidentified Prototypes 1 | . . . 1 . . . Parts Lost 3 | . 3 . . . . . Power 1 | . 1 . . . . . Propulsion . | . . . . . . . Utility 1 | . 1 . . . . . Weapon 1 | . 1 . . . . . Highest Loss Streak 2 | . 2 . . . . . To Critical Strikes . | . . . . . . . Average Slot Usage (%) 89 | . 97 100 90 100 77 77 Engine 11 | . 14 14 11 11 11 11 Wheel 37 | . 28 28 35 44 44 44 Device 11 | . 13 14 11 11 11 11 Storage 11 | . 14 14 11 11 11 11 Energy Gun 2 | . . . 6 11 . . Ballistic Gun 6 | . 19 14 4 . . . Ballistic Cannon 6 | . 6 14 11 11 . . Naked Turns . | . . . . . . . Heaviest Build 30 | 13 19 19 30 30 24 24 Greatest Support 52 | 32 32 32 52 52 52 52 Greatest Overweight (x) 1 | 1 . . . . . . Average Overweight (x) . | . . . . . . . Largest Inventory Capacity 15 | 8 10 10 15 15 15 15 Average Capacity 12 | 7 8 10 13 15 15 15 Most Carried 14 | 6 7 3 6 6 14 14 Average Carried 6 | 2 4 3 3 5 10 14 Final Capacity 15 | 8 10 10 15 15 15 15 Final Carried 14 | 6 3 3 5 6 14 14 Class Distribution -------------------- 53% | Scavenger-Mutant 46% | Mutant Dominant Class ---------------- Mutant | -10/Materials Mutant | -10/Mines Scavenger-Mutant | -9/Materials Scavenger-Mutant | -9/Mines Scavenger-Mutant | -9/Exiles Scavenger-Mutant | -8/Mines Resources | -11 -10 -10 -9 -9 -9 -8 ----------- Run | Yrd Mat Min Mat Min Exi Min Matter Collected 780 | 254 202 86 20 108 110 . Remotely . | . . . . . . . Salvage Created 465 | 159 199 73 34 . . . Parts 44 | 19 16 4 5 . . . Haulers Intercepted . | . . . . . . . Recyclers Shooed . | . . . . . . . Parts Field Recycled . | . . . . . . . Retrieved Matter . | . . . . . . . Parts Self-Destructed . | . . . . . . . Prevented . | . . . . . . . Kills | -11 -10 -10 -9 -9 -9 -8 ------- Run | Yrd Mat Min Mat Min Exi Min Combat Hostiles Destroyed 12 | . 7 2 3 . . . Guns 9 | . 6 1 2 . . . Cannons 3 | . 1 1 1 . . . Classes Destroyed 4 | 2 2 . . . . . Tunneler 5 | 5 . . . . . . Recycler 1 | 1 . . . . . . Swarmer 6 | . 3 . 3 . . . Grunt 6 | . 4 2 . . . . Best Kill Streak 4 | 3 4 2 3 . . . Combat Bots Only 4 | . 4 2 3 . . . Max Kills in Single Turn 2 | 1 1 2 1 . . . Gunslinging . | . . . . . . . Exploded . | . . . . . . . Melee . | . . . . . . . Uniques/NPCs Destroyed . | . . . . . . . Combat | -11 -10 -10 -9 -9 -9 -8 -------- Run | Yrd Mat Min Mat Min Exi Min Hostile Shots Fired 77 | . 36 8 15 18 . . Missed 26 | . 8 1 6 11 . . Damage Taken 603 | . 365 82 70 86 . . Core 119 | . 84 10 25 . . . Absorbed by Shields . | . . . . . . . Regen/Repaired (Parts) 28 | . . . 28 . . . Core Remaining (%) 81 | 100 . 62 . . . . Volleys Fired 59 | 20 22 7 7 3 . . Largest 2 | 2 2 2 2 2 . . Hottest 100 | 40 55 55 55 100 . . Shots Fired 116 | 40 42 14 14 6 . . Gun 94 | 40 37 7 7 3 . . Cannon 22 | . 5 7 7 3 . . Launcher . | . . . . . . . Special . | . . . . . . . Kinetic 113 | 40 42 14 14 3 . . Thermal 3 | . . . . 3 . . Explosive . | . . . . . . . Electromagnetic . | . . . . . . . Robot Hit Streak 7 | 4 7 4 3 5 . . Robot Miss Streak 5 | 2 3 2 5 1 . . Penetration Max . | . . . . . . . Secondary Targets . | . . . . . . . Shots Hit Robots 64 | 23 22 8 6 5 . . Core Hits 27 | 7 12 4 3 1 . . Critical Kills . | . . . . . . . Critical Parts Destroyed . | . . . . . . . Critical Strikes . | . . . . . . . Melee Attacks . | . . . . . . . Impact . | . . . . . . . Slashing . | . . . . . . . Piercing . | . . . . . . . Sneak Attacks . | . . . . . . . Combat Hostiles . | . . . . . . . Follow-up Attacks . | . . . . . . . Damage Inflicted 877 | 307 286 133 76 75 . . Guns 670 | 307 233 45 42 43 . . Cannons 207 | . 53 88 34 32 . . Explosions . | . . . . . . . Melee . | . . . . . . . Ramming . | . . . . . . . Kinetic 834 | 307 286 133 76 32 . . Thermal 43 | . . . . 43 . . Explosive . | . . . . . . . Electromagnetic . | . . . . . . . Impact . | . . . . . . . Slashing . | . . . . . . . Piercing . | . . . . . . . Highest Corruption 3 | . 1 1 3 3 3 3 Average Corruption 2 | . 1 1 3 3 3 3 Corruption Purged . | . . . . . . . Corruption Blocked . | . . . . . . . Effects 18 | . . 1 4 4 7 2 Message Errors 4 | . . 1 . 1 2 . Matter Fused 5 | . . . 2 1 2 . Heat Flow Errors 3 | . . . . 1 1 1 Energy Discharges 3 | . . . . 1 2 . Data Loss (minor) 2 | . . . 2 . . . Data Loss (major) 1 | . . . . . . 1 Overload Shots . | . . . . . . . Overflow Damage . | . . . . . . . Projectiles . | . . . . . . . Explosions . | . . . . . . . Melee . | . . . . . . . Knockbacks 6 | . 1 4 . 1 . . Impact . | . . . . . . . Kinetic 4 | . 1 2 . 1 . . Secondary 2 | . . 2 . . . . Self-Inflicted Damage . | . . . . . . . Shots . | . . . . . . . Rammed . | . . . . . . . Targets Rammed . | . . . . . . . Kicked . | . . . . . . . Crushed . | . . . . . . . Highest Temperature 262 | . 22 13 . 119 262 165 Average Temperature 49 | . 10 8 . 55 135 84 Received Heat Transfer 306 | . 210 48 . 48 . . Siege Activations . | . . . . . . . Robots Corrupted . | . . . . . . . Combat Hostiles . | . . . . . . . Parts Fried . | . . . . . . . Impact Corruptions . | . . . . . . . Robots Melted . | . . . . . . . Combat Hostiles . | . . . . . . . Parts Melted . | . . . . . . . Heat Transferred 111 | . . . . 111 . . Parts Sabotaged . | . . . . . . . Parts Stolen . | . . . . . . . Parts Stripped . | . . . . . . . Power Chain Reactions . | . . . . . . . Alert | -11 -10 -10 -9 -9 -9 -8 ------- Run | Yrd Mat Min Mat Min Exi Min Peak Influence 226 | 30 226 64 159 61 . . Initial 61 | . 19 14 24 61 . . Average 90 | 14 155 22 111 57 . . Maximum Alert Level 1 | . 1 . . . . . Low Security (%) 84 | 100 53 100 100 100 . 100 Level 1 15 | . 46 . . . . . Level 2 . | . . . . . . . Level 3 . | . . . . . . . Level 4 . | . . . . . . . Level 5 . | . . . . . . . High Security . | . . . . . . . Max Security . | . . . . . . . Squads Dispatched 1 | . . . 1 . . . Investigation 1 | . . . 1 . . . Extermination . | . . . . . . . Reinforcement . | . . . . . . . Assault . | . . . . . . . Garrison . | . . . . . . . Intercept . | . . . . . . . Searches Triggered . | . . . . . . . Construction Impeded . | . . . . . . . Haulers Reinforced . | . . . . . . . Active Scanning Responses . | . . . . . . . Cargo Convoy Interrupts . | . . . . . . . Stealth | -11 -10 -10 -9 -9 -9 -8 --------- Run | Yrd Mat Min Mat Min Exi Min Distress Signals 2 | . 1 . 1 . . . Communications Jammed . | . . . . . . . Distress Signals . | . . . . . . . Times Spotted 23 | . 11 2 5 5 . . Peak Tracking Total 5 | . 5 2 4 5 . . Tactical Retreats 3 | . 1 . 1 1 . . Traps | -11 -10 -10 -9 -9 -9 -8 ------- Run | Yrd Mat Min Mat Min Exi Min Traps Triggered . | . . . . . . . Indirectly . | . . . . . . . Trap Hack Attempts . | . . . . . . . Triggered . | . . . . . . . Disarmed . | . . . . . . . Reprogrammed . | . . . . . . . Reused . | . . . . . . . Traps Extracted . | . . . . . . . Installed . | . . . . . . . Triggered . | . . . . . . . Machines | -11 -10 -10 -9 -9 -9 -8 ---------- Run | Yrd Mat Min Mat Min Exi Min Machines Disabled . | . . . . . . . Max in Single Turn . | . . . . . . . Machines Repaired . | . . . . . . . Machines Dismantled . | . . . . . . . Machines Sabotaged . | . . . . . . . Overloaded Fab Kills . | . . . . . . . Hacking | -11 -10 -10 -9 -9 -9 -8 --------- Run | Yrd Mat Min Mat Min Exi Min Machines Accessed 11 | . 2 . 4 . 5 . Terminals 5 | . 2 . 3 . . . Fabricators . | . . . . . . . Repair Stations 1 | . . . 1 . . . Recycling Units . | . . . . . . . Scanalyzers . | . . . . . . . Garrison Access . | . . . . . . . Total Hacks 72 | . 10 . 12 . 50 . Successful 62 | . 4 . 8 . 50 . Failed 10 | . 6 . 4 . . . Catastrophic 1 | . 1 . . . . . Database Lockouts . | . . . . . . . Manual 18 | . 10 . 7 . 1 . Terminals 20 | . 10 . 10 . . . Fabricators . | . . . . . . . Repair Stations 2 | . . . 2 . . . Recycling Units . | . . . . . . . Scanalyzers . | . . . . . . . Garrison Access . | . . . . . . . Terminal Hacks 56 | . 2 . 4 . 50 . Record 49 | . . . . . 49 . Part Schematic 2 | . 2 . . . . . Prototype ID Bank 1 | . . . 1 . . . Branch Access Points 1 | . . . 1 . . . Emergency Access Points 1 | . . . 1 . . . Zone Layout 1 | . . . 1 . . . Derelict Proto ID Bank 1 | . . . . . 1 . Fabricator Hacks . | . . . . . . . Repair Station Hacks 2 | . . . 2 . . . Scan Component 1 | . . . 1 . . . Repair 1 | . . . 1 . . . Recycling Unit Hacks . | . . . . . . . Scanalyzer . | . . . . . . . Garrison Access Hacks . | . . . . . . . Unauthorized Hacks 4 | . 2 . 2 . . . Terminals 4 | . 2 . 2 . . . Assimilate 2 | . 1 . 1 . . . Operators 2 | . 1 . 1 . . . Fabricators . | . . . . . . . Repair Stations . | . . . . . . . Recycling Units . | . . . . . . . Scanalyzers . | . . . . . . . Garrison Access . | . . . . . . . Data Cores Recovered . | . . . . . . . Used . | . . . . . . . Hacking Detections 4 | . 2 . 2 . . . Full Trace Events 3 | . 2 . 1 . . . Feedback Events 1 | . 1 . . . . . Corruption 1 | . 1 . . . . . Feedback Blocked . | . . . . . . . Robot Schematics Acquired . | . . . . . . . Robots Built . | . . . . . . . Authchips . | . . . . . . . Time . | . . . . . . . Total Robot Build Rating . | . . . . . . . Part Schematics Acquired 2 | . 2 . . . . . Parts Built . | . . . . . . . Authchips . | . . . . . . . Time . | . . . . . . . Total Part Build Rating . | . . . . . . . Parts Repaired 1 | . . . 1 . . . Time 26 | . . . 26 . . . Parts Recycled . | . . . . . . . Recycled Matter . | . . . . . . . Retrieved Matter . | . . . . . . . Retrieved Components . | . . . . . . . Parts Scanalyzed . | . . . . . . . Part Schematics Acquired . | . . . . . . . Parts Damaged . | . . . . . . . Bothacking | -11 -10 -10 -9 -9 -9 -8 ------------ Run | Yrd Mat Min Mat Min Exi Min Used RIF Installer . | . . . . . . . Robots Hacked . | . . . . . . . Non-combat . | . . . . . . . Combat . | . . . . . . . Robot Hacks Applied . | . . . . . . . Relay Couplers Released . | . . . . . . . Fabnet Peak Effective % . | . . . . . . . Robots Rewired . | . . . . . . . Allies Hacked . | . . . . . . . Hacks Repelled . | . . . . . . . Allies | -11 -10 -10 -9 -9 -9 -8 -------- Run | Yrd Mat Min Mat Min Exi Min Total Allies 2 | . 1 . 1 . . . Largest Group 2 | . 1 1 2 2 . . Highest-Rated Group 20 | . 10 10 20 20 . . Highest-Rated Ally 10 | . 10 10 10 10 . . Total Orders . | . . . . . . . Ally Attacks . | . . . . . . . Total Damage . | . . . . . . . Kills . | . . . . . . . Allies Corrupted 1 | . . . . 1 . . Allies Melted . | . . . . . . . Intel | -11 -10 -10 -9 -9 -9 -8 ------- Run | Yrd Mat Min Mat Min Exi Min Robot Analysis Total . | . . . . . . . Derelict Logs Recovered 1 | . . . . 1 . . Drone Launches . | . . . . . . . Drone Recoveries . | . . . . . . . Exploration | -11 -10 -10 -9 -9 -9 -8 ------------- Run | Yrd Mat Min Mat Min Exi Min Turns Passed 1939 | 217 450 113 328 199 576 56 Spaces Moved 1576 | 141 212 85 231 209 636 62 Core 20 | 20 . . . . . . Treads . | . . . . . . . Legs . | . . . . . . . Wheels 1556 | 121 212 85 231 209 636 62 Hover . | . . . . . . . Flight . | . . . . . . . Fastest Speed 50 | 50 100 100 90 90 90 90 Average Speed 92 | 95 100 100 93 90 90 90 Slowest Speed 100 | 100 100 100 100 90 90 90 Overloaded Moves . | . . . . . . . Propulsion Burnouts . | . . . . . . . Robots Hopped . | . . . . . . . Cave-ins Triggered . | . . . . . . . Exploration Rate (%) 33 | 5 28 19 26 42 92 22 Regions Visited 6 Branch Regions 4 Pre-discovered Areas 2 | . . . . 1 1 . Known Exits Taken 1 | . . . 1 . . . Unknown Exits Taken 5 | 1 1 1 . 1 1 . Scrap Searched 2 | . . . . 2 . . Spaces Dug . | . . . . . . . Terrain Destroyed . | . . . . . . . Melee . | . . . . . . . Projectile . | . . . . . . . AOE . | . . . . . . . Terrain Rammed . | . . . . . . . Walls Destroyed . | . . . . . . . Machines Disabled . | . . . . . . . Actions | -11 -10 -10 -9 -9 -9 -8 --------- Run | Yrd Mat Min Mat Min Exi Min Total 1932 | 182 407 99 329 213 640 62 Wait 248 | . 165 8 74 1 . . Move 1570 | 140 211 84 230 208 635 62 Hop . | . . . . . . . Pick Up 27 | 13 2 . 8 1 3 . Fast Attach 1 | 1 . . . . . . Attach 13 | 6 3 . 4 . . . Detach 2 | . . . . . 2 . Swap 6 | 1 2 . 3 . . . Drop 6 | 1 2 . 3 . . . Fire 59 | 20 22 7 7 3 . . Melee . | . . . . . . . Ram . | . . . . . . . Kick . | . . . . . . . Crush . | . . . . . . . Escape Stasis . | . . . . . . . Rewire . | . . . . . . . Trap . | . . . . . . . Miscellaneous . | . . . . . . . Route ------- -11/Scrapyard -10/Materials -10/Mines -9/Materials (discovered 2 exits: [*Mat] / *Min) -9/Mines (discovered 2 exits: [*Mat] / *Exi) -9/Exiles -8/Mines History --------- Turn | Location | Event 9 | -11/Scrapyard | Discovered new exit (range 16) 218 | -11/Scrapyard | Entered Materials 314 | -10/Materials | Build established: Mutant 354 | -10/Materials | Discovered new exit (range 16) 668 | -10/Materials | Entered Mines 668 | -10/Mines | Accompanied by 1 ally 734 | -10/Mines | Discovered new exit (range 8) 781 | -10/Mines | Entered Materials 781 | -9/Materials | Accompanied by 1 ally 781 | -9/Materials | Evolved 2 slots: Propulsion x2 820 | -9/Materials | Identified exit to Mines 959 | -9/Materials | Repaired Com. Wheel 1009 | -9/Materials | Discovered new exit (range 10) 1109 | -9/Materials | Entered Mines 1109 | -9/Mines | Accompanied by 2 allies 1114 | -9/Mines | Met a Derelict bent on vengeance 1171 | -9/Mines | Discovered new exit (range 9) 1203 | -9/Mines | Build established: Scavenger-Mutant 1300 | -9/Mines | Deemed a non-threat by the Exiles lab entrance 1301 | -9/Mines | Discovered new exit (range 5) 1308 | -9/Mines | Entered Exiles 1339 | -9/Exiles | Met 8R-AWN 1358 | -9/Exiles | Met EX-HEX 1398 | -9/Exiles | Met EX-BIN 1421 | -9/Exiles | Aligned with FarCom system 1422 | -9/Exiles | Given EX-Vault access code 1481 | -9/Exiles | Opened EX-Vault 1490 | -9/Exiles | Found XL Autogun Array 1511 | -9/Exiles | Warned to stay clear of 0b10 Research branches 1542 | -9/Exiles | Met EX-DEC 1555 | -9/Exiles | Learned location of Zion (-6) 1610 | -9/Exiles | Visited The Gauntlet 1873 | -9/Exiles | Discovered new exit (range 11) 1884 | -9/Exiles | Left Exiles lab with XL Autogun Array 1884 | -9/Exiles | Entered Mines 1940 | -8/Mines | Self-destructed Last Messages --------------- don't have any workstations ready for assignment just yet. We're probably going to have to pack up and move anyway, seeing as the Mines are expanding a bit too close for comfort. <3WBQH 4RXIV9%VVPR:JYY8# System corrupted: Matter fused (-7). System corrupted: Matter fused (-5). Connecting with EX-Message Board... Extracted 4 energy. Acquired Hcp. Battery. Extracted 110 matter. Acquired Hcp. Matter Pod. EXIT=FOUND LOCATION=UNKNOWN GOAL=ESCAPE Receiving FarCom transmissions... System corrupted: Substantial component data lost. System corrupted: Heat flow error (+188). Map ----- +----------------------------------------------------+ | ?????## ##?# #????????????????????????????????? | | ?????# ?? #????????????????????????????????? | | ?????# #??# #????????????????????????????????? | | ?????# #??# #????????????????????????????????? | | ?????# ##?# #????????????????????????????????? | | ##???# #?# #????????????????????????????????? | | ##??# ### ####?????????????????????????????? | | #### ##????????????????????????????? | | ## #????????????????????????????? | | ##### #????????????????????????????? | | ###???# ##????????????????????????????? | | ##????## #?????????????????????????????? | | ###?????# ##?????????????????????????????? | | ##???????# ##?????????????????????????????? | | #????????# ##????????????????????????????? | | ##????????# #????????????????????????????? | | #####?????????# ##???????????????????????????? | | ??????????????## ###?????????????????????????? | | ???????????????### ##????????????????????????? | | ?????????????????## ##???????????????????????? | | ??????????????????# #???????????????????????? | | ??????????????????## #???????????????????????? | | ???????????????????## #???????????????????????? | | ????????????????????## ##???????????????????????? | | ?????????????????????## ####### #????????????????? | | ??????????????????????# @ #????????????????? | | ??????????????????????# #########????????????????? | | ??????????????????????# #????????????????????????? | | ??????????????????????# #????????????????????????? | | ??????????????????????# #????????????????????????? | | ?????????????????????? #????????????????????????? | | ??????????????????????###????????????????????????? | | ?????????????????????????????????????????????????? | | ?????????????????????????????????????????????????? | | ?????????????????????????????????????????????????? | | ?????????????????????????????????????????????????? | | ?????????????????????????????????????????????????? | | ?????????????????????????????????????????????????? | | ?????????????????????????????????????????????????? | | ?????????????????????????????????????????????????? | | ?????????????????????????????????????????????????? | | ?????????????????????????????????????????????????? | | ?????????????????????????????????????????????????? | | ?????????????????????????????????????????????????? | | | | | | | | | | | | | +----------------------------------------------------+ Best States ------------- Heat Dissipation 28 Energy Generation 10 Energy Capacity 125 Matter Stores 300 Matter Capacity 300 Sight Range 16 Terrain Scan Density 10 Evasion (%) 50 Item Schematics ----------------- Grenade Launcher | -10/Materials | Hacked Hcp. Storage Unit | -10/Materials | Hacked Robot Schematics ------------------ None Fabricated ------------ Nothing Alien Tech Used ----------------- None Achievements -------------- None Challenges ------------ None Game ------ Seed HypercooledStasisBox Manual? 1 Play Time 00:17:52 Cumulative 23.1 hours Start 2024.04.14 @ 00:10:28 End 2024.04.14 @ 00:30:06 Sessions 1 Manual Loads 0 Difficulty Rogue Special Mode None Game No. 65 Rogue 65 Adventurer 0 Explorer 0 Win Type - Total 0 Types 0/0/0/0/0/0/0/0/0 Lore% 19 Gallery% 28 Achievement% 22 Wizard Run 0 Options --------- Layout 1 ASCII 0 Keyboard 0 Movement Arrows Keybinds 0 Fullscreen 2 Font 24/Smallcaps Map View 50x35 Zoom Use 0% Tactical HUD 0 Map Filters NONE Filters NONE Steam 1 RUN: 53ff1a2c-7841-48e0-ac61-aa317dff6feb